bitfinex/quotes_ETHUSD_20250112
["timestamp","ask_amount","ask_price","bid_price","bid_amount"]
[1736684504500,2.38814944,3260.3,3259.8,0.7777]
[1736684506859,0.24107944,3260.3,3259.8,0.7777]
[1736684508736,0.23357944,3260.3,3259.9,0.0075]
[1736684508960,2.15429,3260.7,3260.1,0.0075]
[1736684509425,0.23337386,3260.6,3260.1,0.0075]
[1736684510287,2.15429,3260.7,3260.1,0.0075]
[1736684510432,0.23342691,3260.6,3260.1,0.0075]
[1736684510628,2.14665,3260.9,3260.1,0.0075]
[1736684510946,0.23343354,3260.8,3260.2,0.03067012]
[1736684512367,0.23343354,3260.8,3260.4,0.7827]
[1736684512863,0.7813,3261.0,3260.4,0.7827]
[1736684512864,0.23362584,3260.7,3260.4,0.7827]
[1736684513269,0.7813,3261.0,3260.4,0.7827]
[1736684513483,0.23362584,3260.6,3260.4,0.7827]
[1736684513631,0.7813,3261.0,3260.4,0.7827]
[1736684513632,2.14645,3261.2,3260.5,0.0075]
[1736684513971,2.443225,3261.2,3260.5,0.0075]
[1736684517306,0.0075,3260.9,3260.4,0.7827]
[1736684517505,2.14671,3260.8,3260.2,3.0]
[1736684518600,2.14671,3260.8,3260.3,0.0075]
[1736684519195,0.0075,3260.9,3260.2,0.03816963]
[1736684519487,0.0075,3260.9,3260.3,0.7504]
[1736684521916,2.14672,3260.8,3260.3,0.7504]
[1736684522205,0.0075,3260.9,3260.3,0.7504]
[1736684522414,2.15418,3260.9,3260.3,0.7504]
[1736684527705,2.14684,3260.6,3260.0,0.7505]
[1736684527889,0.214684,3260.5,3260.0,0.7505]
[1736684528608,0.23380488,3260.4,3260.0,0.7505]
[1736684529324,0.0075,3260.6,3260.0,0.7505]
[1736684529833,0.23380488,3260.5,3260.0,0.7505]
[1736684530135,2.14665,3260.9,3260.1,0.0075]
[1736684530347,0.53174988,3260.8,3260.2,0.7505]
[1736684530479,0.23380488,3260.8,3260.3,0.758]
[1736684530842,0.0075,3261.0,3260.3,0.758]
[1736684531440,0.23369217,3260.9,3260.3,0.758]
[1736684532918,0.23369217,3260.9,3260.5,0.0075]
[1736684533217,2.14642,3261.3,3260.7,0.0075]
[1736684533416,0.23407668,3260.8,3260.7,0.0075]
[1736684533617,2.14642,3261.3,3260.7,0.0075]
[1736684533957,0.23408331,3261.2,3260.7,0.0075]
[1736684534367,2.38054331,3261.2,3260.7,0.0075]
[1736684535154,2.38054331,3261.2,3260.6,0.7505]
[1736684535321,2.61859764,3261.2,3260.6,0.7505]
[1736684537256,0.23408331,3261.2,3260.6,0.7505]
[1736684537553,0.0075,3261.3,3260.6,0.7505]
[1736684537733,0.23415622,3261.2,3260.6,0.7505]
[1736684538974,0.23415622,3261.2,3260.7,0.0075]
[1736684539128,0.23415622,3261.2,3260.8,0.7505]
[1736684539330,2.14621,3261.6,3260.9,0.0075]
[1736684539566,0.2345473,3261.5,3261.0,0.7505]
[1736684539927,0.2345473,3261.5,3261.1,0.0075]
[1736684540133,0.1661108,3262.0,3261.2,0.773]
[1736684540345,0.23458707,3261.9,3261.4,0.758]
[1736684540869,0.23458707,3261.9,3261.2,0.7505]
[1736684541040,2.14608,3261.8,3261.2,0.7505]
[1736684541670,0.23458707,3261.7,3261.2,0.7505]
[1736684541828,2.61880378,3261.7,3261.2,0.7505]
[1736684543319,2.61880378,3261.7,3261.1,0.0075]
[1736684543618,2.15387,3261.4,3260.5,0.7505]
[1736684544117,2.15387,3261.4,3260.6,0.0075]
[1736684544118,2.14647,3261.2,3260.6,0.0075]
[1736684544899,0.2347925,3261.1,3260.6,0.0075]
[1736684545154,3.20972625,3261.0,3260.5,0.7505]
[1736684545354,0.2347395,3260.9,3260.5,0.7505]
[1736684546811,2.3814095,3260.9,3260.5,0.7505]
[1736684548289,2.3814095,3260.9,3260.3,0.8313]
[1736684550950,2.3814095,3260.9,3260.1,0.8313]
[1736684550951,2.14673,3260.8,3260.1,0.8313]
[1736684551245,0.23442137,3260.7,3260.2,0.0075]
[1736684551448,0.825,3260.5,3259.9,0.8313]
[1736684551753,0.23423577,3260.4,3259.9,0.8313]
[1736684553171,0.0075,3260.6,3259.9,0.8313]
[1736684553376,0.23423577,3260.3,3259.9,0.8313]
[1736684553664,0.0075,3260.6,3259.9,0.8313]
[1736684553816,0.23423577,3260.2,3259.9,1.13224038]
[1736684554168,0.23423577,3260.1,3260.0,0.0075]
[1736684554361,0.825,3260.7,3260.0,0.0075]
[1736684554529,0.23423577,3260.6,3260.0,0.0075]
[1736684558631,0.23423577,3260.6,3260.0,0.03817007]
[1736684558833,0.23423577,3260.6,3260.2,0.0075]
[1736684559230,0.23423577,3260.6,3260.3,0.8313]
[1736684559673,0.825,3261.0,3260.3,0.8313]
[1736684559881,0.825,3261.0,3260.3,0.8619689]
[1736684560179,0.23370541,3260.9,3260.3,0.8619689]
[1736684560370,0.23370541,3260.9,3260.3,1.46362979]
[1736684560671,0.23370541,3260.9,3260.8,3.0075]
[1736684560869,0.23370541,3260.9,3260.8,0.86946332]
[1736684561083,2.97115,3261.7,3260.8,0.86946332]
[1736684561426,0.23388443,3261.6,3260.8,0.86946332]
[1736684561651,0.23388443,3261.6,3260.8,1.47108565]
[1736684562072,0.23388443,3261.6,3260.8,1.44042233]
[1736684564956,2.38007443,3261.6,3260.8,1.44042233]
[1736684565323,2.14625,3261.5,3260.8,1.44042233]
[1736684565545,0.23425563,3261.4,3260.8,1.44042233]
[1736684566425,0.23425563,3261.4,3260.8,1.43292233]
[1736684567672,0.23425563,3261.4,3260.9,0.03816189]
[1736684568077,2.97117,3261.7,3260.9,0.03816189]
[1736684568276,0.23424238,3261.3,3260.9,0.0075]
[1736684568577,0.23424238,3261.2,3260.9,0.03816198]
[1736684568740,2.14621,3261.6,3260.9,0.03816198]
[1736684568926,0.23424238,3261.5,3260.9,0.0075]
[1736684569521,0.23424238,3261.5,3260.9,0.03816189]
[1736684569756,2.38049238,3261.5,3260.9,0.0075]
[1736684574861,0.55479162,3261.5,3260.8,0.8313]
[1736684575066,2.1464,3261.3,3260.8,0.8313]
[1736684575464,2.38104369,3261.2,3260.8,0.8313]
[1736684578169,0.23459369,3261.2,3260.8,0.8313]
[1736684578656,0.23459369,3261.1,3260.8,0.8313]
[1736684578999,2.96986,3261.2,3260.8,0.8313]
[1736684579194,2.38111369,3261.1,3260.7,0.0075]
[1736684579393,2.38111369,3261.1,3260.6,3.79]
[1736684580052,2.14666,3260.9,3260.6,0.79]
[1736684580258,2.14666,3260.9,3260.4,0.7975]
[1736684580404,2.14654,3261.1,3260.4,0.7975]
[1736684580601,0.23446113,3261.0,3260.4,0.7975]
[1736684581903,0.23446113,3261.0,3260.5,0.030667]
[1736684582549,0.23446113,3261.0,3260.6,0.7798]
[1736684582701,2.14645,3261.2,3260.6,0.7798]
[1736684583053,0.23446113,3261.1,3260.6,0.7798]
[1736684584960,2.14645,3261.2,3260.6,0.7798]
[1736684585325,0.23424903,3261.1,3260.6,0.7798]
[1736684590451,0.0075,3261.3,3260.6,0.7798]
[1736684590745,0.23421589,3261.0,3260.6,0.7798]
[1736684590948,0.0075,3261.3,3260.6,0.7798]
[1736684591156,0.8302,3261.7,3261.0,0.0075]
[1736684591358,0.23421589,3261.2,3261.0,0.0075]
[1736684591532,0.8302,3261.7,3261.0,0.0075]
[1736684591732,2.97633,3261.7,3261.0,0.0075]
[1736684591934,0.23420263,3261.6,3261.0,0.0075]
[1736684592757,2.38038263,3261.6,3261.0,0.0075]
[1736684598185,2.38038263,3261.6,3261.1,0.7983]
[1736684608295,0.23420263,3261.6,3261.1,0.7983]
[1736684608449,0.23420263,3261.6,3261.1,0.82896109]
[1736684608655,0.1661108,3262.0,3261.5,0.0075]
[1736684608908,0.23452079,3261.9,3261.6,0.7928]
[1736684611292,0.23452079,3261.9,3261.7,0.0075]
[1736684611791,0.23452079,3261.9,3261.8,0.7928]
[1736684612189,0.1661108,3262.0,3261.8,0.7928]
[1736684613259,0.23534912,3261.9,3261.8,0.7928]
[1736684615810,0.23534912,3261.9,3261.8,0.8003]
[1736684617212,0.23534912,3261.9,3261.8,1.18033]
[1736684617410,0.1661108,3262.0,3261.8,1.18033]
[1736684618459,2.57238536,3263.3,3262.6,0.7928]
[1736684618679,0.220238,3263.2,3262.8,0.7928]
[1736684618879,0.220238,3263.2,3262.9,0.0225]
[1736684619082,0.005,3263.4,3262.9,0.29607]
[1736684619414,0.20572172,3263.1,3263.0,0.7928]
[1736684619600,0.005,3263.4,3263.1,0.0075]
[1736684620371,0.005,3263.4,3263.0,0.7928]
[1736684625410,0.005,3263.4,3263.3,0.0075]
[1736684625726,0.005,3263.4,3263.3,0.03814061]
[1736684626019,0.005,3263.4,3263.3,0.30794206]
[1736684626449,0.005,3263.4,3263.3,0.33858267]
[1736684626642,0.005,3263.4,3263.3,0.30794206]
[1736684627236,0.005,3263.4,3263.3,0.33858268]
[1736684627446,0.005,3263.4,3263.3,0.30794206]
[1736684628508,0.005,3263.4,3263.3,0.33858268]
[1736684629349,0.005,3263.4,3263.3,0.30794206]
[1736684630810,0.005,3263.4,3263.3,0.0075]
[1736684632153,0.21158556,3263.4,3263.3,0.0075]
[1736684632364,0.005,3263.4,3263.3,0.0075]
[1736684632647,0.005,3263.4,3263.2,0.8211]
[1736684633053,0.20658556,3263.3,3263.2,0.8286]
[1736684634040,0.005,3263.4,3263.2,0.8286]
[1736684634425,0.005,3263.4,3263.3,0.0075]
[1736684634944,0.005,3263.4,3263.3,0.39036]
[1736684637128,0.005,3263.4,3263.3,3.0075]
[1736684637725,0.21157229,3263.4,3263.3,0.0075]
[1736684637949,0.005,3263.4,3263.3,0.0075]
[1736684638156,0.21157229,3263.4,3263.3,0.0075]
[1736684639617,0.21157229,3263.4,3263.3,0.8436]
[1736684639855,0.005,3263.4,3263.3,5.98866]
[1736684640025,0.005,3263.4,3263.3,6.59058976]
[1736684641868,0.005,3263.4,3263.3,4.43052976]
[1736684644275,0.005,3263.4,3263.3,11.62122988]
[1736684644573,0.8281,3264.7,3263.9,0.0075]
[1736684644728,0.0075,3264.6,3263.9,0.0075]
[1736684644929,0.2082187,3264.6,3264.0,0.30075]
[1736684645169,0.2007187,3264.6,3264.1,0.7512]
[1736684645606,0.0075,3264.7,3264.1,0.7512]
[1736684645812,0.2007187,3264.5,3264.1,0.7512]
[1736684645998,0.0075,3264.7,3264.1,0.7512]
[1736684646469,0.2007187,3264.6,3264.0,0.30075]
[1736684646673,2.15167,3264.7,3263.9,0.7587]
[1736684646883,0.0075,3264.5,3263.9,0.7587]
[1736684647384,0.20117026,3264.4,3263.9,0.7512]
[1736684649993,0.20117026,3264.4,3264.0,5.15207]
[1736684650193,0.20117026,3264.4,3264.0,5.18270597]
[1736684650518,0.20146905,3264.3,3264.2,0.0075]
[1736684650919,0.826,3264.8,3264.1,0.0075]
[1736684651218,0.20146905,3264.3,3264.1,0.0075]
[1736684651382,0.826,3264.8,3264.1,0.0075]
[1736684651796,0.20146905,3264.7,3264.1,0.0075]
[1736684652021,0.20146905,3264.7,3264.1,0.30089025]
[1736684652405,0.20146905,3264.7,3264.2,0.7512]
[1736684653111,0.826,3264.8,3264.2,0.7512]
[1736684653299,0.20146905,3264.6,3264.2,0.7512]
[1736684653483,0.0075,3264.7,3263.7,5.14478]
[1736684653684,0.0075,3264.7,3263.8,1.802678]
[1736684654023,0.20146905,3264.6,3263.9,0.0075]
[1736684657224,0.826,3264.5,3263.9,0.0075]
[1736684657600,0.20148233,3264.4,3263.9,0.0075]
[1736684659117,2.15168,3264.7,3263.9,0.0075]
[1736684659301,0.20140266,3264.3,3263.9,0.60090653]
[1736684659636,0.0075,3264.7,3264.0,0.7512]
[1736684659935,0.0075,3264.7,3264.0,2.8958]
[1736684660160,0.20139602,3264.6,3264.0,2.8958]
[1736684660522,0.0075,3264.8,3264.0,2.8958]
[1736684660836,0.20139602,3264.5,3264.0,1.10393418]
[1736684661045,2.15158,3264.8,3264.0,0.7512]
[1736684661402,0.0075,3264.6,3264.0,0.7512]
[1736684661956,0.20148233,3264.5,3264.0,0.7512]
[1736684662306,0.0075,3264.7,3264.0,0.7512]
[1736684662540,0.20148233,3264.4,3264.1,3.0]
[1736684662703,0.0075,3264.8,3264.2,0.589579]
[1736684662899,0.0075,3264.8,3264.1,3.0]
[1736684663099,0.20148233,3264.7,3264.2,0.7512]
[1736684663339,0.0075,3264.9,3264.2,0.7512]
[1736684663734,0.20156867,3264.8,3264.2,0.7512]
[1736684664456,0.20156867,3264.8,3264.5,0.0075]
[1736684664629,0.1661108,3265.3,3264.5,0.0075]
[1736684664830,0.20164833,3265.2,3264.5,0.0075]
[1736684665275,0.7627,3265.0,3264.5,0.0075]
[1736684665675,0.7627,3265.0,3264.4,0.7512]
[1736684665826,0.20178774,3264.9,3264.4,0.7512]
[1736684666574,0.20178774,3264.9,3264.2,0.7594]
[1736684667260,0.20178774,3264.9,3264.3,0.0075]
[1736684667441,0.7627,3265.0,3264.3,0.0075]
[1736684667682,0.0075,3264.9,3264.3,0.598642]
[1736684667846,0.0075,3264.9,3264.4,0.7594]
[1736684668037,0.0075,3265.1,3264.4,0.7594]
[1736684668581,0.20183421,3265.0,3264.5,0.0075]
[1736684669056,0.0075,3265.2,3264.5,0.0075]
[1736684669223,0.20184748,3264.9,3264.5,0.0075]
[1736684669421,0.0075,3265.2,3264.5,0.0075]
[1736684669845,0.0075,3265.2,3264.5,0.598629]
[1736684670050,0.19526979,3265.1,3264.6,0.7594]
[1736684672264,0.19526979,3265.1,3264.6,3.7594]
[1736684672462,0.19526979,3265.1,3264.7,3.0075]
[1736684672675,0.19526979,3265.1,3264.7,0.0075]
[1736684672866,0.1661108,3265.3,3265.0,0.7594]
[1736684673065,0.18888313,3265.2,3265.0,0.7594]
[1736684673362,0.1661108,3265.3,3265.2,3.7594]
[1736684673536,0.1661108,3265.3,3265.2,0.7594]
[1736684673736,0.1661108,3265.3,3265.2,0.7669]
[1736684673967,0.1661108,3265.3,3265.2,1.06104524]
[1736684674436,0.1661108,3265.3,3265.0,0.7594]
[1736684674639,0.1661108,3265.3,3265.0,3.7594]
[1736684674836,0.1661108,3265.3,3265.2,2.14381]
[1736684675053,0.1661108,3265.3,3265.2,2.1819313]
[1736684676446,0.1661108,3265.3,3265.2,2.15131]
[1736684676663,0.1661108,3265.3,3265.2,2.442381]
[1736684677275,0.1661108,3265.3,3265.2,6.28980241]
[1736684677438,0.1661108,3265.3,3265.2,6.259181]
[1736684680237,0.1661108,3265.3,3265.2,16.644181]
[1736684680582,0.005,3266.6,3265.9,0.8168]
[1736684680783,0.005,3266.6,3266.0,0.03061432]
[1736684680941,0.1774727,3266.5,3265.9,0.8168]
[1736684681146,0.1774727,3266.5,3266.4,2.14303]
[1736684681454,0.1774727,3266.5,3266.4,5.96733]
[1736684681672,0.005,3266.6,3266.5,2.15046]
[1736684681841,0.005,3266.6,3266.5,0.33483442]
[1736684682036,0.005,3266.6,3266.4,3.8168]
[1736684682037,0.005,3266.6,3266.4,0.8168]
[1736684682777,0.17777384,3266.5,3266.4,0.84741093]
[1736684683083,0.005,3266.6,3266.4,0.84741093]
[1736684683464,0.005,3266.6,3266.4,0.8168]
[1736684683793,0.005,3266.6,3266.1,3.0]
[1736684683794,0.17807487,3266.5,3266.1,3.0]
[1736684684139,0.005,3266.6,3266.0,0.8081]
[1736684684344,0.005,3266.6,3266.1,0.03061299]
[1736684685984,0.005,3266.6,3265.8,0.7704]
[1736684686285,0.005,3266.6,3265.9,2.14333]
[1736684686485,0.005,3266.6,3265.8,0.7704]
[1736684686668,0.005,3266.6,3265.8,2.9138]
[1736684686875,0.005,3266.6,3265.9,3.0075]
[1736684687584,0.005,3266.6,3265.9,2.15084]
[1736684689253,2.89406,3266.5,3265.5,2.14359]
[1736684689454,2.89406,3266.5,3265.4,0.7704]
[1736684689455,0.03827216,3266.4,3265.4,0.7704]
[1736684689689,2.1431,3266.3,3265.4,0.7704]
[1736684689990,0.21135802,3266.2,3265.4,0.7704]
[1736684690394,0.7511,3266.1,3265.4,0.0075]
[1736684690977,0.17308484,3266.0,3265.4,0.0075]
[1736684691498,0.17308484,3266.0,3265.3,2.14373]
[1736684691847,0.17308484,3266.0,3265.4,0.03062014]
[1736684692764,0.17308484,3266.0,3265.2,3.0075]
[1736684692982,0.17308484,3266.0,3265.2,3.65992669]
[1736684693994,0.17308484,3266.0,3265.3,0.03062016]
[1736684694196,0.17308484,3266.0,3265.2,2.80370669]
[1736684694578,0.17308484,3266.0,3265.4,2.14368]
[1736684694982,0.7511,3266.1,3265.4,2.14368]
[1736684695683,0.7561,3266.6,3265.7,2.14342]
[1736684696013,0.7561,3266.6,3265.6,2.14355]
[1736684696014,0.03826808,3266.5,3265.6,2.14355]
[1736684696317,0.17237378,3266.4,3265.6,2.14355]
[1736684696498,0.7511,3266.3,3265.6,2.14355]
[1736684696813,0.17242745,3266.2,3265.6,2.14355]
[1736684697104,0.005,3266.6,3266.1,2.14322]
[1736684697273,0.005,3266.6,3266.2,0.03061285]
[1736684697472,0.17248111,3266.5,3266.2,0.03061285]
[1736684697916,0.92358111,3266.5,3265.9,5.14333]
[1736684698076,0.92358111,3266.5,3265.8,3.0]
[1736684698414,1.05824311,3266.5,3265.8,2.14341]
[1736684698570,0.7511,3266.5,3265.9,0.03061514]
[1736684698769,0.17294401,3266.4,3265.9,0.03061514]
[1736684699371,0.17294401,3266.4,3265.7,2.15097]
[1736684699577,0.17294401,3266.4,3265.8,2.15087]
[1736684699814,0.17294401,3266.4,3265.8,2.18148587]
[1736684699968,0.7511,3266.5,3265.8,2.18148587]
[1736684700170,0.7511,3266.5,3265.9,2.14334]
[1736684700371,0.7511,3266.5,3266.0,0.03061465]
[1736684700675,0.16703638,3266.4,3266.0,0.03061465]
[1736684701838,0.16703638,3266.4,3266.1,0.7704]
[1736684702044,0.16703638,3266.4,3266.2,5.17377307]
[1736684702197,0.005,3266.6,3266.2,3.03061307]
[1736684702637,0.16702968,3266.5,3266.2,3.03061307]
[1736684702939,0.16702968,3266.5,3265.9,0.7965]
[1736684703140,0.16702968,3266.5,3266.2,2.14313]
[1736684703440,0.005,3266.6,3266.4,2.14303]
[1736684703634,0.005,3266.6,3266.5,0.03060913]
[1736684704143,0.005,3266.6,3266.5,3.03060913]
[1736684704516,0.005,3266.6,3266.5,2.17356913]
[1736684704744,0.005,3266.6,3266.5,2.18106913]
[1736684704929,0.005,3266.6,3266.5,2.47039821]
[1736684706148,0.005,3266.6,3266.5,5.50100511]
[1736684706343,0.005,3266.6,3266.5,5.47039821]
[1736684707638,0.005,3266.6,3266.5,3.32743821]
[1736684707842,0.005,3266.6,3266.5,3.35804664]
[1736684708363,0.005,3266.6,3266.5,0.03060843]
[1736684708511,0.005,3266.6,3266.2,0.03061188]
[1736684708844,0.005,3266.6,3266.2,3.03061188]
[1736684709266,0.005,3266.6,3266.3,2.15059]
[1736684709410,0.005,3266.6,3266.0,14.17]
[1736684709610,0.005,3266.6,3266.0,15.802085]
[1736684710059,0.7834,3266.5,3265.9,2.14334]
[1736684710213,0.005,3266.6,3266.2,0.7677]
[1736684710512,0.005,3266.6,3266.3,0.03061113]
[1736684710712,0.16753271,3266.5,3266.3,0.03061113]
[1736684714949,0.16753271,3266.5,3266.1,0.03061218]
[1736684715120,0.16753271,3266.5,3266.1,0.3247704]
[1736684715328,0.005,3266.6,3266.1,0.3247704]
[1736684716450,0.7834,3266.5,3265.6,2.15105]
[1736684716638,0.7834,3266.5,3265.7,0.0075]
[1736684716838,0.16734495,3266.4,3265.7,0.0075]
[1736684717727,0.7834,3266.3,3265.7,0.0075]
[1736684717922,0.7834,3266.3,3265.7,1.402605]
[1736684718234,0.16734495,3266.2,3265.6,3.0]
[1736684718853,2.9265,3266.3,3265.6,3.0]
[1736684719053,0.16721748,3266.1,3265.6,3.0]
[1736684719366,0.7834,3266.3,3265.7,0.03061757]
[1736684719856,0.16721748,3266.2,3265.7,0.03061757]
[1736684720062,0.16721748,3266.2,3265.7,0.54803333]
[1736684720373,0.7834,3266.3,3265.7,0.54803333]
[1736684720719,0.16721748,3266.2,3265.7,0.54803333]
[1736684721036,0.7834,3266.3,3265.7,0.54803333]
[1736684721220,0.7884,3266.6,3265.8,0.7677]
[1736684721425,0.16721748,3266.2,3265.9,0.37653585]
[1736684721649,0.7884,3266.6,3265.9,0.37653585]
[1736684721957,0.16721748,3266.5,3265.9,0.03061552]
[1736684722546,0.16721748,3266.5,3266.0,0.015]
[1736684722760,0.16721748,3266.5,3266.2,0.0075]
[1736684723081,0.005,3266.6,3266.2,0.03811082]
[1736684723658,0.16692904,3266.5,3266.2,0.03811082]
[1736684723859,0.16692904,3266.5,3266.2,2.18125082]
[1736684724071,0.16692904,3266.5,3266.2,2.4001259]
[1736684725781,0.005,3266.6,3266.2,2.4001259]
[1736684725988,0.005,3266.6,3266.4,0.0075]
[1736684726197,0.005,3266.6,3266.4,2.18108703]
[1736684726547,0.005,3266.6,3266.4,0.03810703]
[1736684726743,0.005,3266.6,3266.5,2.15046]
[1736684727045,0.005,3266.6,3266.5,11.2820067]
[1736684727304,0.02746573,3267.1,3267.0,2.23263]
[1736684727502,0.02746573,3267.1,3267.0,6.07862916]
[1736684727643,0.02746573,3267.1,3267.0,11.07053]
[1736684727859,0.02746573,3267.1,3267.0,11.67615762]
[1736684728172,0.02746573,3267.1,3267.0,12.88801468]
[1736684728350,0.005,3267.9,3267.7,0.8154]
[1736684728551,0.005,3267.9,3267.8,0.03059799]
[1736684728776,0.005,3267.9,3267.6,0.03059799]
[1736684728951,0.15586714,3267.9,3267.6,0.03059799]
[1736684729155,0.005,3267.9,3267.8,2.14211]
[1736684729355,0.005,3267.9,3267.8,4.13011879]
[1736684729571,0.005,3267.9,3267.8,4.1070208]
[1736684729861,0.005,3267.9,3267.8,4.0995208]
[1736684730169,0.15586714,3267.9,3267.8,4.0995208]
[1736684730369,0.005,3267.9,3267.8,4.0995208]
[1736684730571,0.15631061,3267.9,3267.8,4.0995208]
[1736684730767,0.005,3267.9,3267.8,4.0995208]
[1736684730971,0.15631061,3267.9,3267.8,4.0995208]
[1736684731165,0.005,3267.9,3267.8,4.1070208]
[1736684731371,0.15631061,3267.9,3267.8,4.1070208]
[1736684731579,0.005,3267.9,3267.8,6.27972773]
[1736684731783,0.15633747,3267.9,3267.8,6.2491308]
[1736684732080,0.005,3267.9,3267.8,6.2491308]
[1736684732818,0.005,3267.9,3267.8,7.0645308]
[1736684733278,0.005,3267.9,3267.8,7.0795308]
[1736684733477,0.005,3267.9,3267.8,4.0995208]
[1736684733808,0.005,3267.9,3267.8,6.27972751]
[1736684733970,0.005,3267.9,3267.8,6.2641308]
[1736684734566,0.005,3267.9,3267.8,3.0]
[1736684734969,0.19912895,3267.9,3267.8,3.0]
[1736684735168,0.005,3267.9,3267.8,3.0]
[1736684735370,0.19912895,3267.9,3267.8,3.0]
[1736684735611,0.005,3267.9,3267.8,3.0]
[1736684735772,0.19912895,3267.9,3267.8,3.0]
[1736684735973,0.005,3267.9,3267.8,3.0]
[1736684736172,0.19912895,3267.9,3267.8,3.0]
[1736684736373,0.005,3267.9,3267.8,3.0]
[1736684736606,0.19912895,3267.9,3267.8,3.0]
[1736684736810,0.005,3267.9,3267.8,3.0]
[1736684737012,0.19912895,3267.9,3267.8,3.0]
[1736684737192,0.005,3267.9,3267.8,3.0]
[1736684737879,0.19912895,3267.9,3267.8,3.0]
[1736684738086,0.005,3267.9,3267.8,3.0]
[1736684738287,0.19912895,3267.9,3267.8,3.3]
[1736684738503,0.005,3267.9,3267.8,3.3]
[1736684738668,0.19912895,3267.9,3267.8,3.3]
[1736684738866,0.005,3267.9,3267.8,3.0]
[1736684739090,0.005,3267.9,3267.8,3.0075]
[1736684739434,0.19912895,3267.9,3267.8,3.0075]
[1736684739616,0.005,3267.9,3267.8,3.85349752]
[1736684739822,0.19912895,3267.9,3267.8,5.99560752]
[1736684740019,0.005,3267.9,3267.8,6.56457075]
[1736684740395,0.005,3267.9,3267.8,6.57957075]
[1736684742411,0.005,3267.9,3267.8,11.57957075]
[1736684742821,0.005,3267.9,3267.8,6.57957075]
[1736684745195,0.005,3267.9,3267.8,4.42246075]
[1736684745628,0.005,3267.9,3267.8,6.56457075]
[1736684746143,0.005,3267.9,3267.8,4.42246075]
[1736684746299,0.005,3267.9,3267.8,3.0]
[1736684746501,0.19273949,3267.9,3267.4,8.8]
[1736684746726,0.005,3267.9,3267.4,8.8]
[1736684746932,0.18773949,3267.8,3267.4,8.8]
[1736684747209,0.18773949,3267.8,3267.5,3.03060021]
[1736684747740,0.18773949,3267.8,3267.5,3.0]
[1736684749004,0.18773949,3267.8,3267.7,2.16467]
[1736684749228,0.18773949,3267.8,3267.7,10.96017]
[1736684749535,0.005,3267.9,3267.8,5.14961]
[1736684749737,0.005,3267.9,3267.8,6.27621791]
[1736684749944,0.005,3267.9,3267.8,6.245621]
[1736684751941,0.005,3267.9,3267.8,10.118311]
[1736684753247,0.005,3267.9,3267.8,6.245621]
[1736684756053,0.005,3267.9,3267.6,10.94221]
[1736684756258,0.005,3267.9,3267.7,3.0]
[1736684756624,0.18787384,3267.8,3267.7,3.0]
[1736684756815,0.18787384,3267.8,3267.7,3.0075]
[1736684758154,0.18787384,3267.8,3267.7,0.0075]
[1736684758356,0.18787384,3267.8,3267.7,0.522473]
[1736684758832,0.005,3267.9,3267.7,0.522473]
[1736684759472,0.18777981,3267.8,3267.7,3.460143]
[1736684759678,0.005,3267.9,3267.7,3.460143]
[1736684759822,0.005,3267.9,3267.7,1.317973]
[1736684760017,0.005,3267.9,3267.8,2.14211]
[1736684761444,0.005,3267.9,3267.8,2.17270808]
[1736684763839,0.005,3267.9,3267.8,2.14211]
[1736684766730,0.005,3267.9,3267.8,13.96461]
[1736684768260,0.005,3267.9,3267.8,19.77361]
[1736684768560,0.005,3267.9,3267.8,21.965195]
[1736684770532,0.005,3267.9,3267.8,22.98864231]
[1736684771752,0.005,3267.9,3267.8,23.58791412]
[1736684772594,0.005,3267.9,3267.8,22.56446681]
[1736684772964,0.005,3267.9,3267.8,22.78196681]
[1736684773167,0.005,3267.9,3267.8,11.66496681]
[1736684773745,0.005,3267.9,3267.8,11.67246681]
[1736684774055,0.005,3267.9,3267.8,8.98946681]
[1736684774594,0.005,3267.9,3267.8,7.348695]
[1736684774766,0.005,3267.9,3267.8,7.341195]
[1736684775966,0.005,3267.9,3267.8,5.199085]
[1736684776456,0.005,3267.9,3267.8,7.37179255]
[1736684776658,0.005,3267.9,3267.8,7.341195]
[1736684777786,0.005,3267.9,3267.8,5.199085]
[1736684777988,0.005,3267.9,3267.8,3.0]
[1736684778188,0.005,3267.9,3267.2,2.1425]
[1736684778189,0.8218,3267.9,3267.2,2.1425]
[1736684778690,0.18819621,3267.8,3267.3,2.1805215]
[1736684778860,0.8218,3267.9,3267.3,2.1805215]
[1736684779282,0.18809547,3267.8,3267.3,2.1805215]
[1736684779595,0.8218,3267.9,3267.3,0.0381015]
[1736684779804,0.86005189,3267.9,3267.1,2.14252]
[1736684779979,0.18799474,3267.7,3267.2,0.03060339]
[1736684780146,0.1879813,3267.8,3267.2,0.03060339]
[1736684780350,0.18788056,3267.6,3267.2,0.03060339]
[1736684780551,0.8168,3267.8,3267.2,0.03060339]
[1736684780778,0.18788056,3267.5,3267.2,0.03060339]
[1736684780991,0.18775296,3267.4,3267.1,0.0075]
[1736684781289,0.8168,3267.8,3267.1,0.0075]
[1736684781490,0.18775296,3267.3,3267.0,2.14263]
[1736684781787,0.85505532,3267.8,3266.8,2.14274]
[1736684782157,1.00455296,3267.7,3266.9,0.0075]
[1736684782653,0.84045602,3267.6,3266.9,0.0075]
[1736684782901,0.8022,3267.6,3267.0,5.14262]
[1736684783079,0.18755142,3267.5,3267.1,0.03060456]
[1736684783296,0.18755142,3267.5,3267.1,2.14254]
[1736684783591,0.18755142,3267.5,3267.1,2.17314482]
[1736684783969,0.18755142,3267.5,3267.1,0.03060482]
[1736684784516,0.18755142,3267.5,3267.0,0.03060483]
[1736684787571,0.18755142,3267.5,3267.1,0.23958188]
[1736684788157,0.18755142,3267.5,3267.0,0.03060483]
[1736684789068,0.7572,3267.4,3267.0,0.03060483]